bitfinex/quotes_BTCUSD_20250615
["timestamp","ask_amount","ask_price","bid_price","bid_amount"]
[1750020238166,0.22874405,104920.0,104910.0,0.99809768]
[1750020238377,0.22874405,104920.0,104910.0,1.04357768]
[1750020238591,0.22874405,104920.0,104910.0,0.74477768]
[1750020239043,0.2192138,104920.0,104910.0,0.74677768]
[1750020240295,0.2192138,104920.0,104910.0,0.74877768]
[1750020240727,0.2192138,104920.0,104910.0,0.72976565]
[1750020240938,0.2192138,104920.0,104910.0,0.76788768]
[1750020241151,0.2192138,104920.0,104910.0,0.72976565]
[1750020241579,0.20968328,104920.0,104910.0,0.18378094]
[1750020241794,0.20015249,104920.0,104910.0,0.18282094]
[1750020242687,0.20015249,104920.0,104910.0,0.22094297]
[1750020243127,0.20015249,104920.0,104910.0,0.76692768]
[1750020243542,0.02859147,104920.0,104910.0,0.76692768]
[1750020243544,0.03812226,104920.0,104910.0,0.76692768]
[1750020243749,0.0285912,104920.0,104910.0,0.8630769]
[1750020244160,0.0285912,104920.0,104910.0,0.86308337]
[1750020244388,0.03812199,104920.0,104910.0,0.27257866]
[1750020244610,0.03812199,104920.0,104910.0,0.92989415]
[1750020244826,0.04765287,104920.0,104910.0,0.92989415]
[1750020245024,0.03812199,104920.0,104910.0,0.92989415]
[1750020245606,0.0285912,104920.0,104910.0,0.92989415]
[1750020245813,0.03812208,104920.0,104910.0,0.92989415]
[1750020246039,0.03812208,104920.0,104910.0,1.02604337]
[1750020246251,0.03812199,104920.0,104910.0,1.02604337]
[1750020246682,0.04765287,104920.0,104910.0,1.02604337]
[1750020246899,0.03812199,104920.0,104910.0,1.02604337]
[1750020247326,0.0381219,104920.0,104910.0,0.92989415]
[1750020247999,0.03812199,104920.0,104910.0,0.92989415]
[1750020248231,0.23827448,104920.0,104910.0,0.90129616]
[1750020248448,0.22874423,104920.0,104910.0,0.92990273]
[1750020248664,0.03812281,104920.0,104910.0,0.92990273]
[1750020249101,0.02859174,104920.0,104910.0,0.90129616]
[1750020249311,0.02859174,104920.0,104910.0,1.02437534]
[1750020249748,0.01906095,104920.0,104910.0,1.02437534]
[1750020249969,0.02859174,104920.0,104910.0,1.02437534]
[1750020250185,0.01906077,104920.0,104910.0,1.02437534]
[1750020250416,0.02859138,104920.0,104910.0,1.02437534]
[1750020250612,0.01906077,104920.0,104910.0,1.00526534]
[1750020250825,0.00953025,104920.0,104910.0,1.00526534]
[1750020251110,0.03812217,104920.0,104910.0,0.88050616]
[1750020251309,0.22874422,104920.0,104910.0,0.17156145]
[1750020251540,0.20968309,104920.0,104910.0,0.36305862]
[1750020251848,0.20968309,104920.0,104910.0,0.34715862]
[1750020252076,0.20968309,104920.0,104910.0,0.89314333]
[1750020252540,0.20968309,104920.0,104910.0,0.34715862]
[1750020253908,0.01906167,104920.0,104910.0,0.34715862]
[1750020254129,0.01906167,104920.0,104910.0,0.36515862]
[1750020254347,0.02859274,104920.0,104910.0,0.91114333]
[1750020255249,0.21921416,104920.0,104910.0,0.91114333]
[1750020255476,0.21921416,104920.0,104910.0,0.89314333]
[1750020255909,0.02859274,104920.0,104910.0,0.89314333]
[1750020256127,0.01906167,104920.0,104910.0,0.89314333]
[1750020256344,0.01906167,104920.0,104910.0,0.91114333]
[1750020256560,0.01906167,104920.0,104910.0,0.36515862]
[1750020256781,0.01906167,104920.0,104910.0,0.91114333]
[1750020256998,0.02859265,104920.0,104910.0,0.91114333]
[1750020258332,0.02859274,104920.0,104910.0,0.90314333]
[1750020258568,0.20860735,104930.0,104910.0,0.92064333]
[1750020258830,0.00953043,104920.0,104910.0,0.98817538]
[1750020259049,0.00953043,104920.0,104910.0,1.01679419]
[1750020259273,0.00953025,104920.0,104910.0,0.89202616]
[1750020259487,0.0285912,104920.0,104910.0,0.89002616]
[1750020260428,0.22874414,104920.0,104910.0,0.90114815]
[1750020260652,0.21921426,104920.0,104910.0,0.32869145]
[1750020260863,0.21921426,104920.0,104910.0,0.35731401]
[1750020261089,0.21921426,104920.0,104910.0,0.36993381]
[1750020261336,0.21921426,104920.0,104910.0,0.16269381]
[1750020261551,0.24578347,104920.0,104910.0,0.12457178]
[1750020263157,0.24578347,104920.0,104910.0,0.11957178]
[1750020263860,0.23625249,104920.0,104910.0,0.11957178]
[1750020265153,0.21815249,104920.0,104910.0,0.11957178]
[1750020265584,0.21815249,104920.0,104910.0,0.09094922]
[1750020266211,0.21815249,104920.0,104910.0,0.11957178]
[1750020266403,0.21815249,104920.0,104910.0,0.09094922]
[1750020267560,0.20015249,104920.0,104910.0,0.11581915]
[1750020268208,0.20015249,104920.0,104910.0,0.11957178]
[1750020268635,0.20015249,104920.0,104910.0,0.09094922]
[1750020270133,0.20015249,104920.0,104910.0,0.11957178]
[1750020270359,0.20015249,104920.0,104910.0,0.09094922]
[1750020270558,0.20015249,104920.0,104910.0,0.07183922]
[1750020271875,0.21785249,104920.0,104910.0,0.07183922]
[1750020272731,0.20015221,104920.0,104910.0,0.07183922]
[1750020272998,0.21921371,104920.0,104910.0,0.10046178]
[1750020273222,0.20968319,104920.0,104910.0,0.10046178]
[1750020273438,0.2001524,104920.0,104910.0,0.10046178]
[1750020275458,0.2181524,104920.0,104910.0,0.10046178]
[1750020276777,0.2001524,104920.0,104910.0,0.10046178]
[1750020277206,0.2001524,104920.0,104910.0,0.64644649]
[1750020277431,0.2347524,104920.0,104910.0,0.10046178]
[1750020277650,0.2180524,104920.0,104910.0,0.64644649]
[1750020277859,0.2180524,104920.0,104910.0,0.10046178]
[1750020278116,0.2180524,104920.0,104910.0,0.09996178]
[1750020278534,0.2001524,104920.0,104910.0,0.09996178]
[1750020280072,0.2001524,104920.0,104910.0,0.66404649]
[1750020280542,0.22520735,104930.0,104910.0,0.76019571]
[1750020280766,0.19060735,104930.0,104920.0,0.54598471]
[1750020280991,0.19060735,104930.0,104920.0,0.03742105]
[1750020282099,0.20880735,104930.0,104920.0,0.03742105]
[1750020283235,0.22660735,104930.0,104920.0,0.03742105]
[1750020283674,0.03112101,104930.0,104920.0,0.03742105]
[1750020283894,0.22174081,104930.0,104920.0,0.03742105]
[1750020285883,0.22174081,104930.0,104920.0,0.10423444]
[1750020286718,0.22174081,104930.0,104920.0,0.03742105]
[1750020287779,0.1906198,104930.0,104920.0,0.03742105]
[1750020290645,4.744e-05,104940.0,104930.0,0.03204085]
[1750020290863,0.01910513,104940.0,104930.0,0.68588673]
[1750020291082,0.01910513,104940.0,104930.0,0.7811686]
[1750020291083,0.02863356,104940.0,104930.0,0.7811686]
[1750020291743,0.03816263,104940.0,104930.0,0.7811686]
[1750020291959,0.23074845,104940.0,104930.0,0.9882886]
[1750020292223,0.04016336,104940.0,104930.0,0.9882886]
[1750020292445,0.23274845,104940.0,104930.0,0.07192105]
[1750020292657,0.22321974,104940.0,104930.0,0.89300673]
[1750020292870,0.22321974,104940.0,104930.0,0.27904105]
[1750020293306,0.21369076,104940.0,104930.0,0.03742105]
[1750020293545,0.24939076,104940.0,104930.0,0.24454105]
[1750020293747,0.24939076,104940.0,104930.0,0.03742105]
[1750020294219,0.24943076,104940.0,104930.0,0.01454085]
[1750020294476,0.24943076,104940.0,104930.0,0.03741927]
[1750020296433,0.24943076,104940.0,104930.0,0.02287842]
[1750020296689,0.79529989,104940.0,104930.0,0.02287842]
[1750020296951,0.22666312,104930.0,104920.0,0.05894085]
[1750020297161,0.22666312,104930.0,104920.0,0.08181545]
[1750020297162,0.24496312,104930.0,104920.0,0.08181545]
[1750020297624,0.24496312,104930.0,104920.0,0.03741545]
[1750020299219,0.24496312,104930.0,104920.0,0.04741545]
[1750020299413,0.24496312,104930.0,104920.0,0.04741721]
[1750020300935,0.24496312,104930.0,104920.0,0.03287636]
[1750020301143,0.79083225,104930.0,104920.0,0.03287636]
[1750020301351,0.24496312,104930.0,104920.0,0.03287636]
[1750020301566,0.79083225,104930.0,104920.0,0.03287636]
[1750020301980,0.24496312,104930.0,104920.0,0.03287636]
[1750020302192,0.79083225,104930.0,104920.0,0.03287636]
[1750020303039,0.24496312,104930.0,104920.0,0.03287636]
[1750020303673,0.24500312,104930.0,104920.0,0.03287636]
[1750020305161,0.24500312,104930.0,104920.0,0.09818273]
[1750020305373,0.20970312,104930.0,104920.0,0.03287636]
[1750020305619,0.20970312,104930.0,104920.0,0.05007636]
[1750020306499,0.20970312,104930.0,104920.0,0.03287636]
[1750020308273,0.20970312,104930.0,104920.0,0.05127636]
[1750020309108,0.20970312,104930.0,104920.0,0.06581721]
[1750020309316,0.20970312,104930.0,104920.0,0.08251721]
[1750020309655,0.19970312,104930.0,104920.0,0.15564721]
[1750020309863,0.20923301,104930.0,104920.0,0.15564721]
[1750020310260,0.20923301,104930.0,104920.0,0.08251721]
[1750020310660,0.19970312,104930.0,104920.0,0.06581721]
[1750020310912,0.19970312,104930.0,104920.0,0.04741721]
[1750020311757,0.23590312,104930.0,104920.0,0.03287636]
[1750020313385,0.19970312,104930.0,104920.0,0.03287636]
[1750020314093,0.23590312,104930.0,104920.0,0.03287636]
[1750020315643,0.78177225,104930.0,104920.0,0.01]
[1750020317235,0.78177225,104930.0,104920.0,0.00868]
[1750020319907,0.78177225,104930.0,104920.0,0.03155512]
[1750020320352,0.78181225,104930.0,104920.0,0.03155512]
[1750020320582,0.78181225,104930.0,104920.0,0.00868]
[1750020321497,0.23594312,104930.0,104920.0,0.00868]
[1750020322147,0.23594312,104930.0,104920.0,0.03155919]
[1750020322379,0.19974312,104930.0,104920.0,0.03155919]
[1750020323043,0.21644312,104930.0,104920.0,0.03155919]
[1750020323705,0.23444312,104930.0,104920.0,0.03155919]
[1750020324210,0.78031225,104930.0,104920.0,0.03155919]
[1750020326188,0.23444312,104930.0,104920.0,0.03155919]
[1750020326653,0.39712312,104930.0,104920.0,0.03155919]
[1750020326865,0.41204802,104930.0,104920.0,0.03155919]
[1750020329966,0.37912312,104930.0,104920.0,0.03155919]
[1750020331379,0.36242312,104930.0,104920.0,0.03155919]
[1750020332268,0.19974312,104930.0,104920.0,0.07759647]
[1750020332493,0.19974312,104930.0,104920.0,0.08130004]
[1750020333322,0.23404312,104930.0,104920.0,0.04610004]
[1750020335988,0.19974312,104930.0,104920.0,0.03155919]
[1750020336430,0.36238312,104930.0,104920.0,0.04965919]
[1750020336690,0.36238312,104930.0,104920.0,0.06635919]
[1750020336956,0.19974312,104930.0,104920.0,0.06635919]
[1750020338987,0.19974312,104930.0,104920.0,0.03155919]
[1750020340818,0.78101225,104930.0,104920.0,0.05066919]
[1750020341030,0.78101225,104930.0,104920.0,0.03155919]
[1750020350097,0.23514312,104930.0,104920.0,0.03155919]
[1750020350299,0.78101225,104930.0,104920.0,0.03155919]
[1750020350951,0.77961225,104930.0,104920.0,0.03155919]
[1750020351234,0.78507582,104930.0,104920.0,0.03155919]
[1750020351465,0.78507582,104930.0,104920.0,0.00868]
[1750020351687,0.23920669,104930.0,104920.0,0.00868]
[1750020351904,0.78507582,104930.0,104920.0,0.00868]
[1750020352114,0.78507582,104930.0,104920.0,0.03158885]
[1750020352322,0.78507582,104930.0,104920.0,0.00868]
[1750020352530,0.78707582,104930.0,104920.0,0.00868]
[1750020353653,0.78907582,104930.0,104920.0,0.00868]
[1750020354303,0.77207582,104930.0,104920.0,0.00868]
[1750020354523,0.20920669,104930.0,104920.0,0.00868]
[1750020354751,0.37184669,104930.0,104920.0,0.03158602]
[1750020355228,0.36638312,104930.0,104920.0,0.03158602]
[1750020356100,0.20374312,104930.0,104920.0,0.06538602]
[1750020356368,0.36638312,104930.0,104920.0,0.06538602]
[1750020358581,0.36609719,104930.0,104920.0,0.06538602]
[1750020361196,0.20345719,104930.0,104920.0,0.06538602]
[1750020361427,0.36609719,104930.0,104920.0,0.06538602]
[1750020362334,0.36609719,104930.0,104920.0,0.04878602]
[1750020362551,0.02313913,104930.0,104920.0,0.63532642]
[1750020362819,0.23280243,104930.0,104920.0,0.63532642]
[1750020363060,0.223273,104930.0,104920.0,0.10852232]
[1750020363507,0.2137433,104930.0,104920.0,0.10852232]
[1750020363736,0.2137433,104930.0,104920.0,0.07992687]
[1750020364674,0.2137433,104930.0,104920.0,0.625796]
[1750020364897,0.2137433,104930.0,104920.0,0.73107062]
[1750020364898,0.02313895,104930.0,104920.0,0.73107062]
[1750020365123,0.04219863,104930.0,104920.0,0.73107062]
[1750020365568,0.04219854,104930.0,104920.0,0.73107062]
[1750020365791,0.05172861,104930.0,104920.0,0.70247517]
[1750020366051,0.00408,104930.0,104920.0,0.73107062]
[1750020366290,0.00408,104930.0,104920.0,0.7405972]
[1750020366524,0.00408,104930.0,104920.0,0.79776148]
[1750020366742,0.00408,104930.0,104920.0,0.75002627]
[1750020367183,0.00408,104930.0,104920.0,1.2958954]
[1750020367400,0.00408,104930.0,104920.0,1.4585354]
[1750020367624,0.00408,104930.0,104920.0,1.55477716]
[1750020367858,0.00408,104930.0,104920.0,1.61194144]
[1750020368077,0.00408,104930.0,104920.0,1.55477716]
[1750020368301,0.00408,104930.0,104920.0,1.06607231]
[1750020368517,0.00408,104930.0,104920.0,1.00890803]
[1750020368738,0.00408,104930.0,104920.0,0.4630389]
[1750020368958,0.00408,104930.0,104920.0,1.00890803]
[1750020370297,0.00408,104930.0,104920.0,1.40607231]
[1750020370734,0.00408,104930.0,104920.0,1.34890803]
[1750020373621,0.00408,104930.0,104920.0,1.89477716]
[1750020374070,0.00408,104930.0,104920.0,1.73213716]
[1750020374296,0.00408,104930.0,104920.0,1.39322803]
[1750020374730,0.00408,104930.0,104920.0,1.42175837]
[1750020375180,0.00408,104930.0,104920.0,1.39322803]
[1750020375603,0.00408,104930.0,104920.0,1.42175497]
[1750020376030,0.00408,104930.0,104920.0,1.93909716]
[1750020377115,0.00408,104930.0,104920.0,1.39322803]
[1750020378385,0.00408,104930.0,104920.0,1.18626803]
[1750020378606,0.00408,104930.0,104920.0,1.39322803]
[1750020378823,0.00408,104930.0,104920.0,1.18626803]
[1750020379056,0.00408,104930.0,104920.0,1.39322803]
[1750020379723,0.00408,104930.0,104920.0,1.18626803]
[1750020379939,0.00408,104930.0,104920.0,1.39322803]
[1750020380636,0.00408,104930.0,104920.0,1.69202803]
[1750020381465,0.00408,104930.0,104920.0,1.68259896]
[1750020383626,0.00408,104930.0,104920.0,1.63444218]
[1750020385094,0.00208,104930.0,104920.0,1.63444218]
[1750020385306,8e-05,104930.0,104920.0,1.63444218]
[1750020385528,8e-05,104930.0,104920.0,1.63644218]
[1750020385802,8e-05,104930.0,104920.0,1.63844218]
[1750020386017,8e-05,104930.0,104920.0,1.7345914]
[1750020386439,8e-05,104930.0,104920.0,1.63844218]
[1750020386659,8e-05,104930.0,104920.0,1.09257305]
[1750020387083,8e-05,104930.0,104920.0,1.63844218]
[1750020387299,8e-05,104930.0,104920.0,1.60991979]
[1750020387529,8e-05,104930.0,104920.0,1.66708407]
[1750020387751,8e-05,104930.0,104920.0,1.76323329]
[1750020388933,0.24204293,104930.0,104920.0,0.03558602]
[1750020389884,0.24204293,104930.0,104920.0,0.05012687]
[1750020390085,0.24204293,104930.0,104920.0,0.04812687]
[1750020390568,0.24204293,104930.0,104920.0,0.04612687]
[1750020393706,0.24204293,104930.0,104920.0,0.04607555]
[1750020394927,0.24204293,104930.0,104920.0,0.02322085]
[1750020395404,0.24204293,104930.0,104920.0,0.0460737]
[1750020396334,0.24204293,104930.0,104920.0,0.02322085]
[1750020398376,0.78791206,104930.0,104920.0,0.02322085]
[1750020400130,0.71589806,104930.0,104920.0,0.02322085]
[1750020401566,0.87849806,104930.0,104920.0,0.02322085]
[1750020402957,0.33262893,104930.0,104920.0,0.02322085]
[1750020403215,0.89342235,104930.0,104920.0,0.02322085]
[1750020404100,0.89342235,104930.0,104920.0,0.00868]
[1750020405915,0.34755322,104930.0,104920.0,0.00868]
[1750020406142,0.89342235,104930.0,104920.0,0.00868]
[1750020406357,0.34755322,104930.0,104920.0,0.00868]
[1750020408751,0.33262893,104930.0,104920.0,0.00868]
[1750020410240,0.87849806,104930.0,104920.0,0.00868]
[1750020411358,0.33262893,104930.0,104920.0,0.00868]
[1750020412933,0.8934226,104930.0,104920.0,0.00868]
[1750020414055,0.34755347,104930.0,104920.0,0.00868]
[1750020414307,0.8934226,104930.0,104920.0,0.00868]
[1750020415410,0.34755347,104930.0,104920.0,0.00868]
[1750020415639,0.8934226,104930.0,104920.0,0.00868]
[1750020415859,0.34755347,104930.0,104920.0,0.00868]
[1750020416080,0.70846913,104930.0,104920.0,0.00868]
[1750020416296,0.37226293,104930.0,104920.0,0.00868]
[1750020416567,0.91813206,104930.0,104920.0,0.00868]
[1750020417431,0.37226293,104930.0,104920.0,0.00868]
[1750020417651,0.91813206,104930.0,104920.0,0.00868]
[1750020418763,0.3968657,104930.0,104920.0,0.00868]
[1750020419020,0.95113206,104930.0,104920.0,0.00868]
[1750020422234,0.78853206,104930.0,104920.0,0.00868]
[1750020422469,0.20966293,104930.0,104920.0,0.00868]
[1750020422676,0.37226293,104930.0,104920.0,0.07851625]
[1750020422911,0.20966293,104930.0,104920.0,0.07851625]
[1750020423163,0.37226293,104930.0,104920.0,0.08935969]
[1750020423400,0.37226293,104930.0,104920.0,0.07851625]
[1750020424112,0.20966293,104930.0,104920.0,0.07851625]
[1750020424610,0.37226293,104930.0,104920.0,0.07851625]
[1750020425557,0.01905913,104930.0,104920.0,0.62438538]
[1750020425794,0.03811918,104930.0,104920.0,0.14680344]
[1750020426007,0.03811909,104930.0,104920.0,0.17537182]
[1750020426649,0.02858902,104930.0,104920.0,0.17537182]
[1750020426910,0.03811909,104930.0,104920.0,0.17537182]
[1750020427138,0.02858902,104930.0,104920.0,0.17537182]
[1750020427369,0.03811909,104930.0,104920.0,0.10708463]
[1750020428721,0.22872234,104930.0,104920.0,0.10708463]
[1750020428939,0.03811909,104930.0,104920.0,0.10708463]
[1750020429406,0.21919337,104930.0,104920.0,0.10708463]
[1750020429626,0.21919337,104930.0,104920.0,0.12459711]
[1750020429851,0.20966348,104930.0,104920.0,0.10708463]
[1750020430078,0.20013341,104930.0,104920.0,0.07851625]
[1750020430301,0.74600254,104930.0,104920.0,0.07851625]
[1750020431006,0.20013341,104930.0,104920.0,0.07851625]
[1750020431449,0.3722633,104930.0,104920.0,0.07851625]
[1750020434027,0.36273341,104930.0,104920.0,0.07851625]
[1750020434532,0.35320325,104930.0,104920.0,0.05562085]
[1750020434779,0.35320325,104930.0,104920.0,0.07849408]
[1750020435263,0.89907238,104930.0,104920.0,0.07849408]
[1750020435543,0.89907238,104930.0,104920.0,0.05562085]
[1750020436289,0.89907238,104930.0,104920.0,0.0784941]
[1750020436764,0.35320325,104930.0,104920.0,0.0784941]
[1750020436997,0.89907238,104930.0,104920.0,0.0784941]
[1750020437469,0.89907238,104930.0,104920.0,0.0618941]
[1750020437956,0.89907238,104930.0,104920.0,0.0777941]
[1750020438596,0.73647238,104930.0,104920.0,0.0777941]
[1750020438822,0.35324325,104930.0,104920.0,0.09142448]
[1750020439038,0.35324325,104930.0,104920.0,0.0777941]
[1750020444776,0.89911238,104930.0,104920.0,0.0777941]
[1750020444986,0.73647238,104930.0,104920.0,0.0777941]
[1750020445198,0.89907238,104930.0,104920.0,0.0777941]
[1750020445888,0.35320325,104930.0,104920.0,0.0777941]
[1750020446101,0.89907238,104930.0,104920.0,0.0777941]
[1750020446737,0.35320325,104930.0,104920.0,0.0777941]
[1750020448860,0.19060325,104930.0,104920.0,0.0777941]
[1750020449059,0.35320325,104930.0,104920.0,0.0777941]
[1750020449475,0.35320325,104930.0,104920.0,0.0766741]
[1750020450627,0.89907238,104930.0,104920.0,0.0766741]
[1750020451119,0.35320325,104930.0,104920.0,0.0766741]
[1750020452718,0.19060325,104930.0,104920.0,0.0766741]
[1750020452963,0.35316325,104930.0,104920.0,0.0766741]
[1750020453412,0.35316325,104930.0,104920.0,0.10526566]
[1750020453636,0.19060325,104930.0,104920.0,0.10526566]
[1750020453850,0.35316325,104930.0,104920.0,0.10526566]
[1750020454080,0.3342081,104940.0,104930.0,0.04644085]
[1750020454316,0.21502005,104950.0,104940.0,0.04644085]
[1750020454545,0.75549247,104950.0,104940.0,0.0693141]
[1750020454788,0.91805247,104950.0,104940.0,0.0693141]
[1750020455017,0.9085244,104950.0,104940.0,0.0693141]
[1750020455449,0.7459644,104950.0,104940.0,0.0673141]
[1750020455671,0.19456693,104950.0,104940.0,0.07710467]
[1750020455889,0.04211128,104950.0,104940.0,0.07710467]
[1750020456109,0.03258321,104950.0,104940.0,0.07948671]
[1750020456324,0.03558321,104950.0,104940.0,0.07948671]
[1750020456538,0.05463944,104950.0,104940.0,0.07710467]
[1750020456765,0.04511119,104950.0,104940.0,0.07710467]
[1750020457211,0.05463935,104950.0,104940.0,0.07710467]
[1750020457676,0.05464017,104950.0,104940.0,0.07710467]
[1750020457895,0.2356793,104950.0,104940.0,0.0673141]
[1750020458559,0.22615141,104950.0,104940.0,0.0673141]
[1750020460504,0.21662343,104950.0,104940.0,0.0673141]
[1750020460732,0.21662343,104950.0,104940.0,0.0530141]
[1750020460733,0.7529644,104950.0,104940.0,0.0530141]
[1750020460968,0.7529644,104950.0,104940.0,0.0696141]
[1750020461190,0.7692644,104950.0,104940.0,0.0374141]
[1750020461404,0.7855644,104950.0,104940.0,0.0374141]
[1750020461615,0.7855644,104950.0,104940.0,0.01454085]
[1750020462574,0.02858884,104930.0,104920.0,0.76081449]
[1750020462798,0.02858884,104930.0,104920.0,0.82846039]
[1750020463020,0.04764889,104930.0,104920.0,0.82846039]
[1750020463460,0.04764889,104930.0,104920.0,0.52966039]
[1750020463670,0.2287228,104930.0,104920.0,0.49153831]
[1750020463894,0.03811955,104930.0,104920.0,0.49253831]
[1750020464315,0.02858948,104930.0,104920.0,0.49253831]
[1750020464554,0.02858874,104930.0,104920.0,0.49253831]
[1750020465436,0.01905895,104930.0,104920.0,0.49253831]
[1750020465685,0.01905895,104930.0,104920.0,0.56681226]
[1750020465965,0.00952934,104930.0,104920.0,0.60493434]
[1750020466186,0.01905886,104930.0,104920.0,0.60493434]
[1750020466432,0.00952934,104930.0,104920.0,0.60493434]
[1750020466662,0.02858847,104930.0,104920.0,0.60493434]
[1750020467107,0.01905877,104930.0,104920.0,0.60493434]
[1750020467352,0.02858838,104930.0,104920.0,0.53066039]
[1750020468518,0.02858829,104930.0,104920.0,0.53066039]
[1750020469206,0.03811799,104930.0,104920.0,0.53066039]
[1750020469682,0.22872233,104930.0,104920.0,0.53066039]
[1750020469967,0.21919281,104930.0,104920.0,0.15253831]
[1750020470203,0.20966311,104930.0,104920.0,0.15253831]
[1750020470902,0.20966311,104930.0,104920.0,0.09161831]
[1750020470903,0.74600245,104930.0,104920.0,0.09161831]
[1750020471123,0.74600245,104930.0,104920.0,0.06302675]
[1750020471366,0.75307238,104930.0,104920.0,0.04642675]
[1750020471588,0.73647238,104930.0,104920.0,0.04642675]
[1750020473215,0.73647238,104930.0,104920.0,0.06272675]
[1750020473687,0.19060325,104930.0,104920.0,0.06272675]
[1750020474334,0.19060325,104930.0,104920.0,0.04642675]
[1750020474816,0.19060325,104930.0,104920.0,0.06272675]
[1750020475069,0.73647238,104930.0,104920.0,0.06272675]
[1750020476282,0.73647238,104930.0,104920.0,0.04642675]
[1750020476957,0.22430325,104930.0,104920.0,0.04642675]
[1750020477182,0.75337238,104930.0,104920.0,0.04642675]
[1750020477958,0.73647238,104930.0,104920.0,0.04642675]
[1750020478202,0.19060325,104930.0,104920.0,0.06282675]
[1750020478918,0.73647238,104930.0,104920.0,0.04642675]
[1750020479601,0.77017238,104930.0,104920.0,0.04642675]
[1750020479839,0.77017238,104930.0,104920.0,0.00903465]
[1750020480319,0.22430325,104930.0,104920.0,0.00903465]
[1750020480562,0.77017238,104930.0,104920.0,0.00903465]
[1750020481504,0.93273238,104930.0,104920.0,0.00903465]
[1750020483152,0.94765795,104930.0,104920.0,0.00903465]
[1750020485965,0.78509795,104930.0,104920.0,0.00903465]
[1750020486203,0.40178882,104930.0,104920.0,0.00903465]
[1750020486655,0.94765795,104930.0,104920.0,0.00903465]
[1750020487130,0.74069951,104930.0,104920.0,0.00903465]
[1750020487385,0.93130276,104930.0,104920.0,0.00903465]
[1750020488296,0.75139795,104930.0,104920.0,0.00903465]
[1750020488538,0.75139795,104930.0,104920.0,0.02523465]
[1750020488539,0.91395795,104930.0,104920.0,0.02523465]
[1750020488724,0.89903238,104930.0,104920.0,0.02523465]
[1750020488970,0.73647238,104930.0,104920.0,0.02523465]
[1750020489200,0.89903238,104930.0,104920.0,0.03238993]
[1750020489647,0.89903238,104930.0,104920.0,0.02523465]
[1750020490117,0.35316325,104930.0,104920.0,0.02523465]
[1750020490345,0.89903238,104930.0,104920.0,0.02523465]
[1750020490571,0.89903238,104930.0,104920.0,0.04163465]
[1750020491546,0.89903238,104930.0,104920.0,0.02523465]
[1750020492221,0.73647238,104930.0,104920.0,0.02523465]
[1750020492447,0.89903238,104930.0,104920.0,0.02523465]
[1750020492682,0.89903238,104930.0,104920.0,0.04163465]
[1750020492940,0.73647238,104930.0,104920.0,0.04163465]
[1750020493184,0.20552861,104930.0,104920.0,0.0561755]
[1750020493406,0.36808861,104930.0,104920.0,0.07902728]
[1750020494313,0.36812861,104930.0,104920.0,0.07902728]
[1750020495456,0.91399774,104930.0,104920.0,0.0561755]
[1750020495680,0.91399774,104930.0,104920.0,0.07903432]
[1750020495914,0.91399774,104930.0,104920.0,0.02523465]
[1750020496154,0.94769774,104930.0,104920.0,0.00903465]
[1750020497081,0.93079774,104930.0,104920.0,0.00903465]
[1750020497522,0.38492861,104930.0,104920.0,0.00903465]
[1750020497749,0.94769774,104930.0,104920.0,0.00903465]
[1750020498654,0.93277238,104930.0,104920.0,0.00903465]
[1750020502994,0.94769817,104930.0,104920.0,0.00903465]
[1750020504940,0.95435089,104930.0,104920.0,0.00903465]
[1750020505162,0.94769817,104930.0,104920.0,0.00903465]
[1750020505381,0.95435095,104930.0,104920.0,0.00903465]
[1750020505589,0.94769817,104930.0,104920.0,0.00903465]
[1750020506030,0.95435086,104930.0,104920.0,0.00903465]
[1750020506459,0.94769817,104930.0,104920.0,0.00903465]
[1750020506894,0.93079817,104930.0,104920.0,0.00903465]
[1750020508699,0.91587238,104930.0,104920.0,0.00903465]
[1750020511807,0.91587238,104930.0,104920.0,0.00803465]
[1750020511808,0.93157238,104930.0,104920.0,0.00803465]
[1750020512277,1.27157238,104930.0,104920.0,0.00803465]
[1750020513159,1.28649901,104930.0,104920.0,0.00803465]
[1750020515547,1.28649901,104930.0,104920.0,0.00639465]
[1750020515761,1.28649901,104930.0,104920.0,0.02550465]
[1750020516047,1.28649901,104930.0,104920.0,0.00639465]
[1750020516718,1.29313167,104930.0,104920.0,0.00639465]
[1750020516939,1.29313154,104930.0,104920.0,0.00639465]
[1750020517159,1.29313153,104930.0,104920.0,0.00639465]
[1750020517622,2.11315948,104920.0,104910.0,0.02991817]
[1750020517873,2.06413255,104920.0,104910.0,0.02991817]
[1750020519265,2.06533255,104920.0,104910.0,0.02991817]
[1750020519500,0.79976289,104880.0,104870.0,0.01]
[1750020519720,1.84806649,104880.0,104870.0,0.01]
[1750020519950,1.30219736,104880.0,104870.0,0.0419]
[1750020520176,1.84806649,104880.0,104870.0,0.0419]
[1750020520400,1.71464402,104880.0,104870.0,0.0419]
[1750020520635,1.04681379,104880.0,104870.0,0.0419]
[1750020520864,0.54417379,104880.0,104870.0,0.0419]
[1750020521084,0.7072882,104880.0,104870.0,0.0419]
[1750020521314,0.35595408,104880.0,104870.0,0.05644085]
[1750020521541,0.22277173,104880.0,104870.0,0.62513694]
[1750020521786,0.23230643,104880.0,104870.0,0.07926781]
[1750020522235,0.021543,104880.0,104870.0,0.07926781]
[1750020522523,0.16292,104890.0,104880.0,0.04644085]
[1750020522766,0.35361239,104890.0,104880.0,0.04648829]
[1750020523209,0.19069239,104890.0,104880.0,0.04644829]
[1750020523427,0.35361239,104890.0,104880.0,0.04644829]
[1750020523697,0.35561239,104890.0,104880.0,0.04644829]
[1750020524131,0.90148152,104890.0,104880.0,0.04644829]
[1750020524367,0.90248152,104890.0,104880.0,0.05880782]
[1750020524586,0.90048152,104890.0,104880.0,0.04644829]
[1750020525019,0.89948152,104890.0,104880.0,0.04644829]
[1750020525697,0.35361239,104890.0,104880.0,0.04644829]
[1750020525929,0.89948152,104890.0,104880.0,4.744e-05]
[1750020526142,0.89932152,104890.0,104880.0,0.03184744]
[1750020527212,0.89932152,104890.0,104880.0,0.01574744]
[1750020528556,0.70862913,104890.0,104880.0,0.01574744]
[1750020528808,0.89932152,104890.0,104880.0,0.01574744]
[1750020529713,0.89932152,104890.0,104880.0,0.03354744]
[1750020532880,0.89916152,104890.0,104880.0,0.03354744]
[1750020535491,0.35329239,104890.0,104880.0,0.03354744]
[1750020535495,0.19073239,104890.0,104880.0,0.03354744]
[1750020535759,0.35333239,104890.0,104880.0,0.04808829]
[1750020536844,0.35333239,104890.0,104880.0,0.07092241]
[1750020537099,0.35333239,104890.0,104880.0,0.07192241]
[1750020537376,0.35333239,104890.0,104880.0,0.07092241]
[1750020537636,0.19073239,104890.0,104880.0,0.07392241]
[1750020538212,0.19073239,104890.0,104880.0,0.07592241]
[1750020540243,0.73660152,104890.0,104880.0,0.07592241]
[1750020540731,0.73660152,104890.0,104880.0,0.09503241]
[1750020540958,0.73660152,104890.0,104880.0,0.06138156]
[1750020541405,0.73660152,104890.0,104880.0,0.00504744]
[1750020542095,0.73660152,104890.0,104880.0,0.00304744]
[1750020542313,1.09350152,104890.0,104880.0,4.744e-05]
[1750020542537,1.11060152,104890.0,104880.0,0.00104744]